fUST/lending_fUST_20251014
["ID","MTS","AMOUNT","RATE_DAILY","PERIOD"]
[391252794,1760437846505,-13253.76,0.000288,7]
[391252795,1760437846515,-357.869474,0.000288,30]
[391252796,1760437846524,-357.869474,0.000288,30]
[391252797,1760437846534,-357.869474,0.000288,30]
[391252798,1760437846543,-357.869469,0.000288,30]
[391252799,1760437846552,-205.0,0.0002898,22]
[391252800,1760437846561,-469.89825691,0.0002899,2]
[391252801,1760437846571,-301122.95274946,0.00029,7]
[391252802,1760437846582,-1110445.78361551,0.00029,7]
[391252803,1760437847696,500.0,0.00018877,2]
[391252804,1760437847723,500.0,0.00018877,2]
[391252805,1760437847750,500.0,0.00018877,2]
[391252806,1760437847778,184.60166731,0.00018877,2]
[391252807,1760437881013,300.0,0.000189,2]
[391252808,1760437887968,500.0,0.00018877,2]
[391252809,1760437887994,500.0,0.00018877,2]
[391252810,1760437888020,500.0,0.00018877,2]
[391252811,1760437888070,500.0,0.00018877,2]
[391252812,1760437888354,500.0,0.00018877,2]
[391252813,1760437888379,387.0018564,0.00018877,2]
[391252814,1760437888420,500.0,0.00018877,2]
[391252815,1760437888446,500.0,0.00018877,2]
[391252816,1760437888632,512.28690132,0.00018877,2]
[391252817,1760437888761,407.1260326,0.00018877,2]
[391252818,1760437888790,500.0,0.00018877,2]
[391252819,1760437892019,300.0,0.000189,2]
[391252820,1760437900551,1898.56150568,0.00018977,2]
[391252821,1760437900585,3101.43849432,0.00018977,2]
[391252822,1760437907997,500.0,0.00018877,2]
[391252823,1760437908047,500.0,0.00018877,2]
[391252824,1760437908096,318.27328917,0.00018877,2]
[391252826,1760437945028,6624.87,0.00019,30]
[391252827,1760437960816,183.22605,0.00018877,2]
[391252828,1760437960844,500.0,0.00018877,2]
[391252829,1760437960871,500.0,0.00018877,2]
[391252830,1760437960898,500.0,0.00018877,2]
[391252831,1760437960926,500.0,0.00018877,2]
[391252832,1760437960959,223.39375611,0.00018877,2]
[391252833,1760437960985,500.0,0.00018877,2]
[391252834,1760437961018,500.0,0.00018877,2]
[391252836,1760438058924,1939.10757574,0.00018977,2]
[391252837,1760438130506,-150.0,0.00019177,2]
[391252838,1760438130528,-1.02389613,0.00019177,2]
[391252839,1760438255663,151.0,0.00017,2]
[391252841,1760438739497,-179.14722287,0.00019165,2]
[391252842,1760438739519,-30.46158603,0.00019165,2]
[391252843,1760438741035,-262.16704335,0.00019165,2]
[391252844,1760438742994,-7.37137062,0.00019165,2]
[391252845,1760438743016,-151.0,0.00019166,2]
[391252846,1760438743037,-151.0,0.00019166,2]
[391252847,1760438743058,-36.13897984,0.00019166,2]
[391252848,1760438745285,-114.86102016,0.00019166,2]
[391252849,1760438745307,-127.38474001,0.00019166,2]
[391252850,1760438746796,-23.61525999,0.00019166,2]
[391252851,1760438746818,-151.0,0.00019166,2]
[391252852,1760438746841,-151.0,0.00019166,2]
[391252853,1760438746864,-92.66747721,0.00019166,2]
[391252854,1760438748340,-58.33252279,0.00019166,2]
[391252855,1760438748362,-151.0,0.00019166,2]
[391252856,1760438748384,-122.59200141,0.00019166,2]
[391252857,1760438750749,-28.40799859,0.00019166,2]
[391252858,1760438750771,-142.76014114,0.00019166,2]
[391252859,1760438752665,-8.23985886,0.00019166,2]
[391252860,1760438752688,-151.0,0.00019166,2]
[391252861,1760438752710,-151.0,0.00019166,2]
[391252862,1760438752731,-0.17976044,0.00019166,2]
[391252863,1760438752759,331.9245242,0.00018904,2]
[391252864,1760438756559,-150.82023956,0.00019166,2]
[391252865,1760438756582,-134.90115822,0.00019166,2]
[391252866,1760438768031,418.2827372,0.00018904,2]
[391252867,1760438776023,767.30915681,0.00018904,2]
[391252869,1760438848232,7000.0,0.00015,30]
[391252870,1760438866226,1500.0,0.00015,2]
[391252871,1760438912184,-16.09884178,0.00019166,2]
[391252872,1760438912204,-148.94631205,0.00019166,2]
[391252873,1760438918469,-2.05368795,0.00019166,2]
[391252874,1760438918491,-151.0,0.00019166,2]
[391252875,1760438918512,-11.08069322,0.00019166,2]
[391252910,1760439032371,-165.04515383,0.00019067,2]
[391252912,1760439032381,-164.13438117,0.00019078,2]
[391252914,1760439032391,-151.0,0.00019166,2]
[391252916,1760439032403,-70.270465,0.00019166,2]
[391252918,1760439032423,-80.729535,0.00019166,2]
[391252920,1760439032432,-294.67440554,0.00019166,2]
[391252921,1760439032444,-1064.07,0.00019168,3]
[391252922,1760439032453,-532.04,0.00019168,3]
[391252924,1760439032463,-266.02,0.00019168,3]
[391252926,1760439032472,-798.06,0.00019168,3]
[391252928,1760439032482,-160.0,0.00019177,2]
[391252929,1760439032492,-348.86826848,0.00019177,2]
[391252930,1760439032501,-188.25541961,0.00019177,2]
[391252931,1760439032510,-500.0,0.00019177,2]
[391252932,1760439032519,-500.0,0.00019177,2]
[391252933,1760439032529,-481.16745673,0.00019177,2]
[391252934,1760439032538,-500.0,0.00019177,2]
[391252935,1760439032547,-500.0,0.00019177,2]
[391252936,1760439032556,-594.06672037,0.00019177,2]
[391252937,1760439032564,-500.0,0.00019177,2]
[391252938,1760439032574,-500.0,0.00019177,2]
[391252939,1760439032583,-500.0,0.00019177,2]
[391252940,1760439032592,-500.0,0.00019177,2]
[391252941,1760439032601,-500.0,0.00019178,2]
[391252942,1760439032609,-171.85413085,0.00019178,2]
[391252943,1760439032618,-500.0,0.00019178,2]
[391252944,1760439032628,-500.0,0.00019178,2]
[391252945,1760439032637,-560.0,0.00019178,2]
[391252946,1760439032647,-500.0,0.00019178,2]
[391252947,1760439032656,-500.0,0.00019178,2]
[391252948,1760439032665,-503.84759013,0.00019178,2]
[391252949,1760439032676,-500.0,0.00019178,2]
[391252950,1760439032685,-569.21,0.00019178,2]
[391252951,1760439032694,-500.0,0.00019178,2]
[391252952,1760439032703,-500.0,0.00019178,2]
[391252953,1760439032712,-500.0,0.00019178,2]
[391252954,1760439032721,-500.0,0.00019178,2]
[391252955,1760439032730,-163.93579155,0.00019178,2]
[391252956,1760439032739,-500.0,0.00019178,2]
[391252957,1760439032748,-500.0,0.00019178,2]
[391252958,1760439032757,-500.0,0.00019178,2]
[391252959,1760439032767,-500.0,0.00019178,2]
[391252960,1760439032776,-500.0,0.00019178,2]
[391252961,1760439032786,-500.0,0.00019178,2]
[391252962,1760439032795,-500.0,0.00019178,2]
[391252963,1760439032804,-500.0,0.00019178,2]
[391252964,1760439032813,-500.0,0.00019178,2]
[391252965,1760439032822,-500.0,0.00019178,2]
[391252966,1760439032831,-500.0,0.00019178,2]
[391252967,1760439032840,-500.0,0.00019178,2]
[391252968,1760439032850,-500.0,0.00019178,2]
[391252969,1760439032859,-500.0,0.00019178,2]
[391252970,1760439032868,-500.0,0.00019178,2]
[391252971,1760439032877,-500.0,0.00019178,2]
[391252972,1760439032886,-500.0,0.00019178,2]
[391252973,1760439032895,-600.0752103,0.00019178,2]
[391252974,1760439032905,-501.17850119,0.00019178,2]
[391252975,1760439032914,-500.0,0.00019178,2]
[391252976,1760439032924,-500.0,0.00019178,2]
[391252977,1760439032933,-500.0,0.00019178,2]
[391252978,1760439032943,-500.0,0.00019178,2]
[391252979,1760439032952,-500.0,0.00019178,2]
[391252980,1760439032962,-500.0,0.00019178,2]
[391252981,1760439032971,-500.0,0.00019178,2]
[391252982,1760439032980,-274.38,0.00019178,2]
[391252983,1760439032992,-501.42384181,0.00019178,2]
[391252984,1760439033002,-500.0,0.00019178,2]
[391252985,1760439033011,-500.0,0.00019178,2]
[391252986,1760439033021,-252.97,0.00019178,2]
[391252987,1760439033031,-500.0,0.00019178,2]
[391252988,1760439033041,-500.0,0.00019178,2]
[391252989,1760439033051,-510.83,0.00019178,2]
[391252990,1760439033060,-500.0,0.00019178,2]
[391252991,1760439033069,-500.0,0.00019178,2]
[391252992,1760439033079,-500.0,0.00019178,2]
[391252993,1760439033088,-501.75300673,0.00019178,2]
[391252994,1760439033097,-500.0,0.00019178,2]
[391252995,1760439033106,-500.0,0.00019178,2]
[391252996,1760439033115,-500.0,0.00019178,2]
[391252997,1760439033124,-500.0,0.00019178,2]
[391252998,1760439033133,-501.56289255,0.00019178,2]
[391252999,1760439033143,-500.0,0.00019178,2]
[391253000,1760439033152,-500.0,0.00019178,2]
[391253001,1760439033162,-500.0,0.00019178,2]
[391253002,1760439033171,-500.0,0.00019178,2]
[391253003,1760439033182,-500.0,0.00019178,2]
[391253004,1760439033192,-500.0,0.00019178,2]
[391253005,1760439033201,-505.44697524,0.00019178,2]
[391253006,1760439033211,-500.0,0.00019178,2]
[391253007,1760439033220,-549.04,0.00019178,2]
[391253008,1760439033229,-644.03,0.00019178,2]
[391253009,1760439033239,-184.03435143,0.00019178,2]
[391253010,1760439033248,-500.0,0.00019178,2]
[391253011,1760439033257,-500.0,0.00019178,2]
[391253012,1760439033267,-399.53266675,0.00019178,2]
[391253013,1760439033276,-562.58,0.00019178,2]
[391253014,1760439033285,-500.0,0.00019178,2]
[391253015,1760439033295,-500.0,0.00019178,2]
[391253016,1760439033304,-500.0,0.00019178,2]
[391253017,1760439033432,-500.0,0.00019178,2]
[391253018,1760439033470,-500.0,0.00019178,2]
[391253019,1760439033481,-500.0,0.00019178,2]
[391253020,1760439033490,-500.0,0.00019178,2]
[391253021,1760439033499,-500.0,0.00019178,2]
[391253022,1760439033508,-500.0,0.00019178,2]
[391253023,1760439033518,-500.0,0.00019178,2]
[391253024,1760439033526,-500.0,0.00019178,2]
[391253025,1760439033536,-500.0,0.00019178,2]
[391253026,1760439033546,-500.0,0.00019178,2]
[391253027,1760439033555,-400.0,0.00019178,2]
[391253028,1760439033565,-500.0,0.00019178,2]
[391253029,1760439033574,-500.0,0.00019178,2]
[391253030,1760439033583,-500.0,0.00019178,2]
[391253031,1760439033592,-298.26,0.00019178,2]
[391253032,1760439033602,-500.0,0.00019178,2]
[391253033,1760439033611,-460.37796839,0.00019178,2]
[391253034,1760439033620,-514.29,0.00019178,2]
[391253035,1760439033630,-500.0,0.00019178,2]
[391253036,1760439033640,-500.0,0.00019178,2]
[391253037,1760439033649,-500.0,0.00019178,2]
[391253038,1760439033658,-505.10079148,0.00019178,2]
[391253039,1760439033668,-500.0,0.00019178,2]
[391253040,1760439033678,-500.65017267,0.00019178,2]
[391253041,1760439033688,-440.65556953,0.00019178,2]
[391253042,1760439033697,-500.0,0.00019178,2]
[391253043,1760439033706,-579.05,0.00019178,2]
[391253044,1760439033716,-500.0,0.00019178,2]
[391253045,1760439033724,-500.0,0.00019178,2]
[391253046,1760439033734,-500.0,0.00019178,2]
[391253047,1760439033743,-500.0,0.00019178,2]
[391253048,1760439033753,-500.0,0.00019178,2]
[391253049,1760439033762,-500.0,0.00019178,2]
[391253050,1760439033771,-500.0,0.00019178,2]
[391253051,1760439033781,-500.0,0.00019178,2]
[391253052,1760439033790,-500.0,0.00019178,2]
[391253053,1760439033799,-535.78,0.00019178,2]
[391253054,1760439033808,-500.0,0.00019178,2]
[391253055,1760439033817,-500.0,0.00019178,2]
[391253056,1760439033828,-192.73608081,0.00019178,2]
[391253057,1760439033837,-500.0,0.00019178,2]
[391253058,1760439033846,-500.0,0.00019178,2]
[391253059,1760439033856,-500.0,0.00019178,2]
[391253060,1760439033865,-500.0,0.00019178,2]
[391253061,1760439033874,-500.0,0.00019178,2]
[391253062,1760439033884,-500.0,0.00019178,2]
[391253063,1760439033893,-530.0,0.00019178,2]
[391253064,1760439033902,-500.0,0.00019178,2]
[391253065,1760439033911,-500.0,0.00019178,2]
[391253066,1760439033920,-463.59171238,0.00019178,2]
[391253067,1760439033933,-444.77552548,0.00019178,2]
[391253068,1760439033942,-500.0,0.00019178,2]
[391253069,1760439033952,-500.0,0.00019178,2]
[391253070,1760439033960,-500.0,0.00019178,2]
[391253071,1760439033970,-500.0,0.00019178,2]
[391253072,1760439033979,-500.0,0.00019178,2]
[391253073,1760439033989,-500.0,0.00019178,2]
[391253074,1760439033998,-500.0,0.00019178,2]
[391253075,1760439034008,-259.79,0.00019178,2]
[391253076,1760439034018,-1465.29,0.00019178,2]
[391253077,1760439034027,-1465.29,0.00019178,2]
[391253078,1760439034036,-1465.29,0.00019178,2]
[391253079,1760439034046,-1465.29,0.00019178,2]
[391253080,1760439034055,-1465.29,0.00019178,2]
[391253081,1760439034064,-1465.29,0.00019178,2]
[391253082,1760439034074,-500.0,0.00019178,2]
[391253083,1760439034083,-500.0,0.00019178,2]
[391253084,1760439034091,-1465.29,0.00019178,2]
[391253085,1760439034100,-500.0,0.00019178,2]
[391253086,1760439034110,-1465.29,0.00019178,2]
[391253087,1760439034119,-1465.29,0.00019178,2]
[391253088,1760439034128,-1465.29,0.00019178,2]
[391253089,1760439034137,-1465.29,0.00019178,2]
[391253090,1760439034146,-1465.29,0.00019178,2]
[391253091,1760439034155,-1465.29,0.00019178,2]
[391253092,1760439034164,-460.0,0.00019178,2]
[391253093,1760439034175,-1465.29,0.00019178,2]
[391253094,1760439034184,-1465.29,0.00019178,2]
[391253095,1760439034194,-1465.29,0.00019178,2]
[391253096,1760439034203,-839.67737974,0.00019178,2]
[391253129,1760439038476,-625.61262026,0.00019178,2]
[391253131,1760439038486,-1465.29,0.00019178,2]
[391253133,1760439038496,-1465.29,0.00019178,2]
[391253135,1760439038505,-1465.29,0.00019178,2]
[391253137,1760439038514,-1465.29,0.00019178,2]
[391253139,1760439038524,-1465.29,0.00019178,2]
[391253141,1760439038533,-1465.29,0.00019178,2]
[391253143,1760439038542,-1465.29044686,0.00019178,2]
[391253145,1760439038556,-500.0,0.00019178,2]
[391253147,1760439038566,-500.0,0.00019178,2]
[391253150,1760439038576,-232.67,0.00019178,2]
[391253152,1760439038585,-500.0,0.00019178,2]
[391253154,1760439038594,-502.20049558,0.00019178,2]
[391253156,1760439038604,-500.0,0.00019178,2]
[391253158,1760439038613,-500.0,0.00019178,2]
[391253160,1760439038623,-500.0,0.00019178,2]
[391253162,1760439038632,-500.0,0.00019178,2]
[391253164,1760439038641,-500.24462386,0.00019178,2]
[391253166,1760439038651,-500.0,0.00019178,2]
[391253168,1760439038660,-500.0,0.00019178,2]
[391253170,1760439038669,-474.98,0.00019178,2]
[391253172,1760439038682,-500.0,0.00019178,2]
[391253174,1760439038691,-500.0,0.00019178,2]
[391253176,1760439038700,-502.10397334,0.00019178,2]
[391253178,1760439038710,-500.0,0.00019178,2]
[391253180,1760439038719,-500.0,0.00019178,2]
[391253182,1760439038728,-500.0,0.00019178,2]
[391253184,1760439038737,-500.0,0.00019178,2]
[391253186,1760439038747,-500.0,0.00019178,2]
[391253188,1760439038757,-500.0,0.00019178,2]
[391253190,1760439038766,-504.06460321,0.00019178,2]
[391253192,1760439038776,-500.0,0.00019178,2]
[391253194,1760439038785,-500.0,0.00019178,2]
[391253196,1760439038795,-500.0,0.00019178,2]
[391253198,1760439038804,-500.0,0.00019178,2]
[391253200,1760439038814,-609.38,0.00019178,2]
[391253202,1760439038823,-500.0,0.00019178,2]
[391253204,1760439038832,-500.0,0.00019178,2]
[391253206,1760439038841,-500.0,0.00019178,2]
[391253208,1760439038850,-500.0,0.00019178,2]
[391253210,1760439038859,-319.4,0.00019178,2]
[391253212,1760439038869,-501.29844845,0.00019178,2]
[391253214,1760439038880,-500.0,0.00019178,2]
[391253216,1760439038889,-500.0,0.00019178,2]
[391253218,1760439038898,-500.0,0.00019178,2]
[391253220,1760439038908,-500.0,0.00019178,2]
[391253222,1760439038918,-500.0,0.00019178,2]
[391253224,1760439038928,-500.0,0.00019178,2]
[391253226,1760439038937,-500.0,0.00019178,2]
[391253228,1760439038946,-339.44,0.00019178,2]
[391253230,1760439038956,-500.0,0.00019178,2]
[391253232,1760439038966,-500.0,0.00019178,2]
[391253234,1760439038975,-500.0,0.00019178,2]
[391253236,1760439038984,-500.0,0.00019178,2]
[391253238,1760439038993,-500.0,0.00019178,2]
[391253240,1760439039003,-329.0,0.00019178,2]
[391253242,1760439039013,-500.0,0.00019178,2]
[391253244,1760439039022,-500.0,0.00019178,2]
[391253246,1760439039031,-500.0,0.00019178,2]
[391253248,1760439039041,-500.69808346,0.00019178,2]
[391253250,1760439039052,-500.0,0.00019178,2]
[391253252,1760439039063,-500.0,0.00019178,2]
[391253254,1760439039073,-439.66486777,0.00019178,2]
[391253256,1760439039083,-500.0,0.00019178,2]
[391253258,1760439039091,-500.0,0.00019178,2]
[391253260,1760439039102,-253.1,0.00019178,2]
[391253262,1760439039111,-500.0,0.00019178,2]
[391253264,1760439039121,-500.0,0.00019178,2]
[391253266,1760439039131,-501.07740083,0.00019178,2]
[391253268,1760439039141,-500.0,0.00019178,2]
[391253271,1760439039150,-500.0,0.00019178,2]
[391253273,1760439039160,-500.0,0.00019178,2]
[391253274,1760439039169,-1038.77,0.00019178,2]
[391253276,1760439039180,-1038.77,0.00019178,2]
[391253278,1760439039189,-1038.77,0.00019178,2]
[391253280,1760439039198,-1038.77,0.00019178,2]
[391253283,1760439039209,-1038.77,0.00019178,2]
[391253284,1760439039218,-1038.77,0.00019178,2]
[391253287,1760439039228,-1038.77,0.00019178,2]
[391253288,1760439039237,-500.0,0.00019178,2]
[391253290,1760439039246,-555.44676525,0.00019178,2]
[391253292,1760439039255,-1038.77,0.00019178,2]
[391253294,1760439039264,-1038.77,0.00019178,2]
[391253296,1760439039273,-745.11082246,0.00019178,2]
[391253299,1760439039286,-293.65917754,0.00019178,2]
[391253301,1760439039294,-1038.77,0.00019178,2]
[391253303,1760439039304,-1038.77,0.00019178,2]
[391253305,1760439039313,-1038.77,0.00019178,2]
[391253307,1760439039322,-1038.77,0.00019178,2]
[391253309,1760439039332,-1038.77,0.00019178,2]
[391253311,1760439039341,-1038.77,0.00019178,2]
[391253313,1760439039350,-1038.77,0.00019178,2]
[391253315,1760439039360,-1038.77,0.00019178,2]
[391253317,1760439039369,-1038.77,0.00019178,2]
[391253319,1760439039378,-1038.77,0.00019178,2]
[391253321,1760439039388,-1038.77,0.00019178,2]
[391253323,1760439039401,-1038.77,0.00019178,2]
[391253325,1760439039414,-1038.77,0.00019178,2]
[391253326,1760439039424,-1038.91014021,0.00019178,2]
[391253329,1760439039437,-500.0,0.00019178,2]
[391253331,1760439039447,-500.0,0.00019178,2]
[391253333,1760439039457,-553.94,0.00019178,2]
[391253335,1760439039467,-500.0,0.00019178,2]
[391253337,1760439039478,-500.0,0.00019178,2]
[391253339,1760439039490,-500.0,0.00019178,2]
[391253341,1760439039500,-500.0,0.00019178,2]
[391253343,1760439039510,-129.37723209,0.00019178,2]
[391253345,1760439039522,-370.62276791,0.00019178,2]
[391253347,1760439039531,-500.0,0.00019178,2]
[391253349,1760439039541,-500.0,0.00019178,2]
[391253351,1760439039551,-500.0,0.00019178,2]
[391253353,1760439039560,-500.0,0.00019178,2]
[391253355,1760439039570,-500.0,0.00019178,2]
[391253357,1760439039579,-500.0,0.00019178,2]
[391253359,1760439039590,-140.94068882,0.00019178,2]
[391253361,1760439039602,-359.05931118,0.00019178,2]
[391253362,1760439039611,-205.2,0.00019178,2]
[391253363,1760439039620,-500.0,0.00019178,2]
[391253364,1760439039629,-254.27,0.00019178,2]
[391253365,1760439039638,-350.68125568,0.00019178,2]
[391253366,1760439039649,-149.31874432,0.00019178,2]
[391253367,1760439039659,-500.0,0.00019178,2]
[391253368,1760439039667,-500.0,0.00019178,2]
[391253369,1760439039679,-500.0,0.00019178,2]
[391253370,1760439039687,-500.0,0.00019178,2]
[391253371,1760439039697,-500.0,0.00019178,2]
[391253372,1760439039705,-500.0,0.00019178,2]
[391253373,1760439039715,-500.0,0.00019178,2]
[391253374,1760439039724,-500.0,0.00019178,2]
[391253375,1760439039733,-500.0,0.00019178,2]
[391253376,1760439039742,-366.4,0.00019178,2]
[391253377,1760439039750,-245.18972667,0.00019178,2]
[391253387,1760439039852,-261.23158858,0.00019178,2]
[391253389,1760439039861,-300.0,0.00019561,2]
[391253391,1760439039871,-300.0,0.00019561,2]
[391253393,1760439039880,-300.0,0.00019561,2]
[391253395,1760439039889,-300.0,0.00019561,2]
[391253397,1760439039898,-300.0,0.00019561,2]
[391253399,1760439039908,-300.0,0.00019561,2]
[391253401,1760439039918,-300.0,0.00019561,2]
[391253403,1760439039930,-300.0,0.00019561,2]
[391253405,1760439039940,-300.0,0.00019561,2]
[391253407,1760439039949,-300.0,0.00019561,2]
[391253409,1760439039959,-300.0,0.00019561,2]
[391253411,1760439039968,-178.17650376,0.00019561,2]
[391253414,1760439039980,-121.82349624,0.00019561,2]
[391253415,1760439039989,-300.0,0.00019561,2]
[391253418,1760439039999,-300.0,0.00019561,2]
[391253420,1760439040008,-126.76697456,0.00019561,2]
[391253467,1760439040447,-173.23302544,0.00019561,2]
[391253469,1760439040457,-600.0,0.00019561,2]
[391253471,1760439040466,-151.41,0.00019709,2]
[391253473,1760439040478,-250.0,0.00020381,2]
[391253475,1760439040487,-1472.32801899,0.00020381,2]
[391253734,1760439043249,-637.9200523,0.00020381,2]
[391253807,1760439043614,-3e-08,0.00020381,2]
[391253811,1760439043625,-3911.923936,0.00020381,2]
[391253859,1760439043853,-12581.71169268,0.00020381,2]
[391253861,1760439043863,-250.0,0.00020381,2]
[391253863,1760439043872,-250.0,0.00020381,2]
[391253865,1760439043881,-250.0,0.00020381,2]
[391253867,1760439043890,-250.0,0.00020381,2]
[391253869,1760439043898,-250.0,0.00020381,2]
[391253871,1760439043907,-250.0,0.00020381,2]
[391253873,1760439043916,-250.0,0.00020381,2]
[391253875,1760439043925,-250.0,0.00020381,2]
[391253877,1760439043938,-250.0,0.00020381,2]
[391253879,1760439043947,-250.0,0.00020381,2]
[391253881,1760439043956,-250.0,0.00020381,2]
[391253883,1760439043965,-250.0,0.00020381,2]
[391253885,1760439043974,-250.0,0.00020381,2]
[391253887,1760439043983,-250.0,0.00020381,2]
[391253889,1760439043992,-250.0,0.00020381,2]
[391253891,1760439044002,-250.0,0.00020381,2]
[391253893,1760439044011,-250.0,0.00020381,2]
[391253894,1760439044021,-2128.14,0.00020538,3]
[391253896,1760439044030,-1064.08,0.00020538,3]
[391253898,1760439044039,-532.04,0.00020538,3]
[391253900,1760439044048,-194.3,0.00020988,2]
[391253902,1760439044058,-720.0,0.00021517,20]
[391253904,1760439044067,-388.6,0.00022895,2]
[391253906,1760439044076,-864.0,0.00023668,20]
[391253908,1760439044085,-297.85617065,0.00024366,2]
[391253910,1760439044094,-582.9,0.00024803,2]
[391253912,1760439044103,-170.141,0.00024873,8]
[391253914,1760439044112,-9277.63,0.000249,7]
[391253916,1760439044121,-55471.4892303,0.000249,2]
[391253918,1760439044133,-4999.0,0.00026027,2]
[391253920,1760439044143,-1000.0,0.00026035,20]
[391253922,1760439044152,-777.2,0.00026711,2]
[391253924,1760439044161,-6377.11,0.00026752,10]
[391253926,1760439044171,-168.0,0.00026762,2]
[391253928,1760439044181,-168.0,0.00027086,2]
[391253930,1760439044190,-168.0,0.00027125,2]
[391253932,1760439044199,-168.0,0.00027144,2]
[391253934,1760439044208,-168.0,0.00027174,2]
[391253936,1760439044216,-4999.0,0.00027397,4]
[391253938,1760439044225,-168.0,0.00027416,2]
[391253940,1760439044234,-1503.95,0.00027598,15]
[391253942,1760439044244,-168.0,0.00027673,2]
[391253944,1760439044252,-734.85190639,0.00027698,15]
[391253947,1760439044263,-769.09809361,0.00027698,15]
[391253949,1760439044272,-18490.4964101,0.00027788,2]
[391253951,1760439044281,-1503.95,0.00027798,15]
[391253953,1760439044290,-1503.95,0.00027898,15]
[391253955,1760439044299,-1503.95,0.00027998,15]
[391253957,1760439044308,-168.0,0.00028,2]
[391253959,1760439044317,-168.0,0.00028001,2]
[391253961,1760439044326,-1503.95,0.00028098,15]
[391253963,1760439044335,-278.11005426,0.00028124,2]
[391253965,1760439044345,-168.0,0.00028132,2]
[391253966,1760439044353,-288.99063717,0.00028198,15]
[391253969,1760439044364,-1214.95936283,0.00028198,15]
[391253971,1760439044373,-154.904954,0.00028224,30]
[391253972,1760439044382,-800.0,0.0002827,7]
[391253974,1760439044392,-1503.95,0.00028298,15]
[391253976,1760439044405,-1503.95,0.00028398,15]
[391253978,1760439044413,-168.0,0.00028444,2]
[391253980,1760439044424,-1503.95,0.00028498,15]
[391253982,1760439044436,-1503.95,0.00028598,15]
[391253985,1760439044445,-971.5,0.00028619,2]
[391253987,1760439044455,-1125.26225406,0.00028625,2]
[391253988,1760439044464,-1000.0,0.00028639,30]
[391253990,1760439044475,-244.0,0.00028639,30]
[391253992,1760439044485,-1503.95,0.00028698,15]
[391253994,1760439044494,-168.0,0.00028731,2]
[391253996,1760439044503,-168.0,0.00028746,2]
[391253998,1760439044513,-4999.0,0.00028767,6]
[391254000,1760439044522,-1503.95,0.00028798,15]
[391254002,1760439044531,-154.904954,0.00028812,3]
[391254004,1760439044541,-1503.95,0.00028898,15]
[391254007,1760439044551,-206.0,0.0002899,22]
[391254008,1760439044561,-15692.63119353,0.0002899,2]
[391254183,1760439046363,-2797.86521657,0.0002899,2]
[391254185,1760439046373,-1503.95,0.00028998,15]
[391254187,1760439046383,-1397602.67370894,0.00029,7]
[391254206,1760439046576,-480.0,0.00029,7]
[391254474,1760439947019,588.07,0.00018102,2]
[391254475,1760439948874,-1092.55440517,0.00018978,2]
[391254476,1760439948902,-150.0,0.00018978,2]
[391254503,1760440232583,-449.46,0.00019068,3]
[391254505,1760440232592,-388.77480677,0.00019075,2]
[391254511,1760440232636,-485.26871735,0.00019075,2]